bitfinex/quotes_ETHUSD_20251224
["timestamp","ask_amount","ask_price","bid_price","bid_amount"]
[1766558485758,5.1651,2936.1,2935.4,8.53964251]
[1766558485959,5.1651,2936.1,2935.4,8.50557561]
[1766558486660,5.1651,2936.1,2935.4,5.0989]
[1766558487256,5.1651,2936.1,2935.4,5.1329669]
[1766558487462,6.15606058,2936.1,2935.4,5.0989]
[1766558490089,6.1458433,2936.1,2935.4,5.0989]
[1766558491189,5.5679,2936.0,2935.4,5.0989]
[1766558491487,5.5679,2936.0,2935.3,0.89]
[1766558491488,5.58153722,2936.0,2935.3,0.89]
[1766558491687,5.5679,2935.8,2935.3,0.89]
[1766558492288,5.5679,2935.8,2935.1,6.1984]
[1766558492492,5.5679,2935.8,2935.2,5.3084]
[1766558494493,3.40623083,2935.8,2935.2,5.3084]
[1766558494709,5.5679,2935.7,2935.2,5.3084]
[1766558495697,5.5679,2935.7,2935.1,0.89]
[1766558496495,5.5679,2935.7,2935.1,6.1984]
[1766558497207,5.5679,2935.7,2935.1,9.60543429]
[1766558498002,5.5679,2935.9,2935.2,5.34246922]
[1766558499113,5.5679,2935.9,2935.2,5.3084]
[1766558500416,5.5679,2935.8,2935.2,5.3084]
[1766558506225,5.5679,2935.8,2935.2,5.34246922]
[1766558506412,5.5679,2935.8,2935.2,5.3084]
[1766558506612,6.46666749,2935.8,2935.2,5.3084]
[1766558509229,6.46666749,2935.8,2935.2,5.34246922]
[1766558511530,6.46766749,2935.8,2935.2,5.34246922]
[1766558512197,0.001,2935.8,2935.2,5.34246922]
[1766558514943,0.001,2935.8,2935.2,5.3084]
[1766558515309,5.2336,2935.8,2935.2,5.3084]
[1766558517329,5.2336,2935.8,2935.1,0.892]
[1766558517534,5.2336,2935.8,2935.1,4.29902838]
[1766558517747,5.2336,2935.8,2935.2,5.2937]
[1766558518554,5.75832372,2935.8,2935.2,5.2937]
[1766558521528,5.2336,2935.8,2935.3,5.2238]
[1766558521836,0.001,2935.8,2935.4,5.2578669]
[1766558522937,0.001,2935.8,2935.4,5.2238]
[1766558528136,8.60339334,2936.2,2935.6,5.2238]
[1766558528522,5.1976,2936.1,2935.6,5.2238]
[1766558528855,5.1976,2936.1,2935.5,5.2238]
[1766558529355,5.1976,2936.1,2935.5,6.14786574]
[1766558530556,8.60348021,2936.1,2935.5,6.14786574]
[1766558530857,5.1976,2936.1,2935.5,6.14786574]
[1766558531535,8.60349469,2936.1,2935.5,6.14786574]
[1766558531737,5.1976,2936.1,2935.5,6.14786574]
[1766558532270,8.60349048,2936.1,2935.5,6.14786574]
[1766558533362,5.1976,2936.1,2935.5,6.14786574]
[1766558536348,5.1986,2936.1,2935.5,6.14786574]
[1766558537276,5.1986,2936.1,2935.5,2.31887511]
[1766558537574,5.1986,2936.1,2935.6,5.2238]
[1766558538052,5.1986,2936.1,2935.6,5.25786458]
[1766558539813,5.1986,2936.1,2935.6,5.2238]
[1766558540289,5.1986,2936.1,2935.6,5.25786458]
[1766558541469,0.001,2936.1,2935.6,5.25786458]
[1766558544292,0.001,2936.1,2935.6,5.2238]
[1766558545292,0.001,2936.1,2935.6,5.25786458]
[1766558557416,0.001,2936.1,2935.8,5.3163]
[1766558557593,0.001,2936.4,2935.8,5.35036226]
[1766558560336,0.001,2936.4,2935.8,8.75657714]
[1766558560498,0.001,2936.4,2935.9,5.3163]
[1766558560824,0.001,2936.4,2936.1,5.3163]
[1766558561390,0.001,2936.6,2936.2,5.3163]
[1766558562414,0.001,2936.6,2936.2,5.2663]
[1766558563007,5.3684,2936.6,2936.2,5.2663]
[1766558567698,5.3684,2936.6,2935.9,9.79976682]
[1766558568824,5.3684,2936.6,2935.9,4.29609372]
[1766558569025,6.2459518,2936.6,2935.9,4.29609372]
[1766558569727,5.3684,2936.6,2936.0,5.5037]
[1766558571328,5.3684,2936.6,2936.1,5.5037]
[1766558575108,5.3684,2936.6,2935.5,5.5057]
[1766558575109,5.6035,2936.5,2935.5,5.5057]
[1766558575316,5.6035,2936.3,2935.5,9.80227395]
[1766558575609,5.6035,2936.1,2935.5,6.3957]
[1766558576136,5.6035,2936.1,2935.5,0.892]
[1766558576441,5.6035,2936.1,2935.5,0.002]
[1766558576621,5.6035,2936.1,2935.4,0.002]
[1766558576943,5.6035,2936.0,2935.4,0.002]
[1766558577747,6.6058879,2936.0,2935.4,0.002]
[1766558578613,6.6058879,2936.0,2935.3,0.89]
[1766558579517,6.6058879,2936.0,2935.3,9.80048459]
[1766558579744,6.6058879,2936.0,2935.3,14.1919126]
[1766558579928,6.6058879,2936.0,2935.3,8.6882126]
[1766558580128,6.6058879,2936.0,2935.3,14.1919126]
[1766558580329,1.00085652,2936.2,2935.6,5.5037]
[1766558580530,1.00085652,2936.2,2935.5,4.39142801]
[1766558580531,5.6035,2936.3,2935.8,5.5037]
[1766558580744,0.001,2936.6,2935.9,0.0340611]
[1766558580945,5.6045,2936.6,2936.1,5.5037]
[1766558581640,5.3272,2936.5,2936.1,5.5037]
[1766558581843,5.3272,2936.3,2935.7,0.89]
[1766558582347,5.3272,2936.3,2935.6,0.89]
[1766558583422,5.3272,2936.2,2935.6,0.89]
[1766558584027,5.3272,2936.0,2935.2,5.4632]
[1766558584226,5.3272,2935.8,2935.2,8.87007307]
[1766558584661,5.3272,2935.8,2935.1,0.002]
[1766558584662,5.3272,2935.8,2935.1,3.40898568]
[1766558585366,5.3272,2935.8,2935.1,8.87218568]
[1766558585859,5.3272,2935.8,2935.1,3.40898568]
[1766558586066,5.3272,2935.8,2935.1,8.87218568]
[1766558586278,5.3272,2935.8,2935.2,5.4632]
[1766558587266,5.3272,2935.8,2935.3,5.49726806]
[1766558587564,5.3272,2935.8,2935.3,8.90406744]
[1766558587769,5.3272,2935.8,2935.3,5.4632]
[1766558592580,5.3272,2935.8,2935.2,3.40690259]
[1766558592747,5.3272,2935.8,2935.2,10.22103885]
[1766558595490,5.3272,2935.8,2935.3,5.4632]
[1766558596677,5.3282,2935.8,2935.3,5.4632]
[1766558599149,5.3282,2935.8,2935.4,5.4632]
[1766558599452,5.3282,2935.8,2935.4,5.4972669]
[1766558599653,5.3282,2935.8,2935.4,5.4632]
[1766558603387,0.001,2935.8,2935.5,0.03406574]
[1766558603587,0.892,2936.0,2935.6,5.4632]
[1766558604185,6.2192,2936.0,2935.6,5.4632]
[1766558604574,6.2202,2936.0,2935.6,5.4632]
[1766558606784,5.3282,2936.0,2935.6,5.4632]
[1766558607287,5.3282,2936.0,2935.4,5.4632]
[1766558607472,5.3282,2936.0,2935.4,5.4972669]
[1766558608096,0.001,2936.0,2935.5,5.4632]
[1766558608273,5.34083722,2936.3,2935.7,5.4632]
[1766558608471,0.01363722,2936.5,2935.9,5.4632]
[1766558608662,0.90563722,2936.5,2935.9,5.4632]
[1766558608867,6.23283722,2936.5,2935.9,5.4632]
[1766558610195,6.23283722,2936.5,2935.9,5.4972611]
[1766558610196,6.2192,2936.5,2935.9,5.4972611]
[1766558610579,6.2192,2936.5,2935.9,5.4632]
[1766558613798,6.2202,2936.5,2935.9,5.4632]
[1766558614011,5.6915,2936.4,2935.9,5.4632]
[1766558614776,5.6915,2936.3,2935.6,5.7091]
[1766558620120,5.6915,2936.3,2935.6,9.11552549]
[1766558620929,5.6915,2936.3,2935.6,5.7091]
[1766558621338,5.6915,2936.3,2935.6,9.11552559]
[1766558621829,5.6925,2936.3,2935.6,9.11552559]
[1766558622025,0.892,2936.2,2935.6,9.11552559]
[1766558622195,5.6915,2936.1,2935.6,9.11552559]
[1766558623829,5.6915,2936.1,2935.6,5.7091]
[1766558628310,6.18485731,2936.1,2935.4,8.68264896]
[1766558628639,6.18485731,2936.1,2935.5,8.68055966]
[1766558629738,6.18485731,2936.1,2935.5,8.68255966]
[1766558630105,6.18485731,2936.1,2935.5,5.276]
[1766558630734,6.18485731,2936.1,2935.5,8.68256289]
[1766558633044,5.189,2935.9,2935.5,0.002]
[1766558636549,5.189,2935.9,2935.5,5.276]
[1766558637553,0.893,2936.3,2935.6,5.274]
[1766558638249,6.082,2936.3,2935.6,5.274]
[1766558638649,6.082,2936.3,2935.6,5.30806458]
[1766558638855,0.001,2936.3,2935.6,5.30806458]
[1766558639552,7.04612069,2936.5,2935.7,5.274]
[1766558639553,5.19,2936.5,2935.7,5.274]
[1766558639713,0.001,2936.5,2935.7,5.274]
[1766558640531,5.19,2936.5,2935.7,5.274]
[1766558641035,5.189,2936.4,2935.7,5.274]
[1766558641347,5.20263722,2936.4,2935.7,5.274]
[1766558641654,5.4359,2936.3,2935.7,5.274]
[1766558642035,5.4359,2936.3,2935.8,5.7521]
[1766558643021,0.001,2936.5,2935.8,5.7521]
[1766558644071,0.001,2936.5,2935.9,5.7521]
[1766558645228,0.001,2936.5,2936.1,5.7521]
[1766558647625,0.001,2936.7,2936.2,5.7521]
[1766558648721,5.4369,2936.7,2936.2,5.7521]
[1766558650725,0.001,2936.8,2936.3,0.03405646]
[1766558650927,0.001,2937.0,2936.3,5.7521]
[1766558651257,0.001,2937.0,2936.5,5.7521]
[1766558654900,5.4369,2937.0,2936.5,5.7521]
[1766558655097,5.4369,2937.0,2936.2,5.7521]
[1766558655461,5.4369,2937.0,2936.3,3.40563802]
[1766558655760,5.4369,2937.0,2936.3,9.15773802]
[1766558655959,5.4369,2937.0,2936.3,10.50309876]
[1766558658087,5.4369,2937.0,2936.4,5.7521]
[1766558664383,5.4369,2937.0,2936.2,3.4057071]
[1766558664582,5.4369,2937.0,2936.2,9.1578071]
[1766558664963,5.4369,2937.0,2936.3,5.7521]
[1766558665298,6.3289,2937.0,2936.3,9.157741]
[1766558665590,6.3289,2937.0,2936.3,4.75100179]
[1766558665795,6.3289,2937.0,2936.4,5.7521]
[1766558666596,6.3289,2937.0,2936.2,9.15781824]
[1766558668595,5.4359,2936.9,2936.2,5.7521]
[1766558669478,5.4359,2936.9,2936.2,9.15785156]
[1766558670398,5.4359,2936.9,2936.2,5.7521]
[1766558670597,5.4359,2936.8,2936.2,5.7521]
[1766558671100,6.77785622,2936.7,2936.2,5.7521]
[1766558671294,6.77785622,2936.7,2936.1,3.40783371]
[1766558671295,6.77785622,2936.7,2936.1,0.002]
[1766558671502,5.7556,2936.7,2936.1,3.4078735]
[1766558671800,6.77785622,2936.6,2936.1,9.0490735]
[1766558672564,6.77785622,2936.6,2936.1,5.6432]
[1766558672992,5.7556,2936.6,2936.1,5.6432]
[1766558673165,5.7556,2936.6,2936.1,0.002]
[1766558673364,5.7556,2936.4,2936.1,0.002]
[1766558684115,5.7556,2936.4,2936.1,0.03605878]
[1766558684487,5.7556,2936.4,2936.1,5.67725878]
[1766558684811,1.02229454,2936.5,2936.1,5.67725878]
[1766558685310,6.77789454,2936.5,2936.1,5.6432]
[1766558685523,6.77789454,2936.5,2936.1,0.002]
[1766558697145,1.02229454,2936.5,2936.2,5.6412]
[1766558697312,0.001,2936.8,2936.4,5.6412]
[1766558698231,0.001,2936.8,2936.5,5.37135414]
[1766558698924,0.001,2937.0,2936.6,5.3373]
[1766558699107,0.001,2937.2,2936.8,5.3373]
[1766558699925,0.001,2937.3,2937.0,5.3373]
[1766558703523,0.001,2937.3,2936.7,3.40517257]
[1766558703728,5.2624,2937.3,2936.8,5.6116]
[1766558705520,5.2624,2937.3,2936.6,0.89]
[1766558705521,5.78874,2937.3,2936.5,1.02204726]
[1766558705838,5.2614,2937.1,2936.1,0.002]
[1766558706569,5.2614,2936.9,2936.0,0.002]
[1766558706729,5.2614,2936.7,2936.0,0.002]
[1766558707343,1.02235724,2936.6,2936.0,0.002]
[1766558707522,5.2614,2936.5,2936.0,0.002]
[1766558709161,5.2614,2936.5,2936.0,5.35195994]
[1766558709751,5.2614,2936.8,2936.0,5.35195994]
[1766558710070,0.52614,2936.7,2936.0,5.35195994]
[1766558710372,5.2614,2936.7,2936.0,5.35195994]
[1766558711467,5.2614,2936.7,2936.0,8.7579151]
[1766558711626,5.2614,2936.7,2936.1,5.3388]
[1766558711963,5.2614,2936.7,2936.2,0.03405762]
[1766558713177,5.2614,2936.7,2936.2,5.38765762]
[1766558715277,6.23026575,2936.7,2936.2,5.38765762]
[1766558716470,1.0233015,2936.8,2936.2,5.38765762]
[1766558716675,0.001,2936.8,2936.3,5.3753]
[1766558722980,5.2624,2936.8,2936.3,5.3753]
[1766558731602,5.2624,2936.8,2936.4,5.4349]
[1766558731603,0.001,2936.8,2936.4,5.4349]
[1766558731804,0.001,2936.8,2936.4,5.4689553]
[1766558731978,0.001,2936.8,2936.4,5.4349]
[1766558732178,5.7192,2937.0,2936.5,5.4361]
[1766558732372,3.93185365,2937.3,2936.6,5.47015298]
[1766558732373,5.7192,2937.2,2936.6,5.47015298]
[1766558737310,0.001,2937.3,2936.7,5.4464]
[1766558737614,5.7202,2937.3,2936.8,5.48045066]
[1766558737909,0.001,2937.2,2936.8,5.48045066]
[1766558738316,5.7202,2937.2,2936.8,5.48045066]
[1766558739285,5.7202,2937.2,2936.8,5.4464]
[1766558739485,5.7202,2937.2,2936.5,8.85576251]
[1766558739706,5.7202,2937.2,2936.5,6.76528643]
[1766558740294,5.7202,2937.2,2936.5,10.1706924]
[1766558740493,5.7202,2937.2,2936.5,6.76528643]
[1766558742012,5.7202,2937.2,2936.5,10.17068945]
[1766558742625,5.7202,2937.2,2936.5,6.76528643]
[1766558743193,5.7202,2937.2,2936.5,10.17069393]
[1766558743392,5.7202,2937.2,2936.6,1.01706939]
[1766558743600,5.7202,2937.2,2936.6,8.76295867]
[1766558743828,5.7202,2937.2,2936.7,5.39175182]
[1766558744020,0.001,2937.2,2936.7,5.39175182]
[1766558746225,0.001,2937.2,2936.8,5.3577]
[1766558746519,0.001,2937.2,2936.9,0.0340495]
[1766558747298,0.001,2937.2,2936.9,5.3917495]
[1766558748018,0.001,2937.4,2937.0,5.3577]
[1766558749424,0.001,2937.4,2936.9,0.87969196]
[1766558749425,5.4586,2937.4,2936.9,0.87969196]
[1766558749591,5.4586,2937.4,2936.8,5.3577]
[1766558761296,5.4586,2937.4,2936.8,5.3597]
[1766558764330,5.4586,2937.4,2936.9,5.4937]
[1766558766363,6.82261144,2937.3,2935.8,0.37844082]
[1766558766545,6.82261144,2937.3,2935.6,3.40838968]
[1766558766546,5.83803722,2936.6,2935.6,3.40838968]
[1766558766730,5.83803722,2936.6,2935.9,0.892]
[1766558767246,5.8244,2936.4,2935.9,0.892]
[1766558767824,5.8244,2936.4,2935.6,0.002]
[1766558767825,5.8244,2936.2,2935.7,0.89]
[1766558768422,5.8244,2936.2,2935.6,0.002]
[1766558768423,5.8244,2936.0,2935.6,0.002]
[1766558769040,1.02246178,2935.9,2935.6,1.8102]
[1766558772314,5.8244,2936.4,2935.7,0.8234]
[1766558774158,9.22993355,2936.4,2935.7,0.8234]
[1766558774346,5.8244,2936.3,2935.7,0.8234]
[1766558774547,5.8244,2936.3,2935.7,1.7948943]
[1766558775849,5.8244,2936.3,2935.8,0.854]
[1766558776030,5.8244,2936.3,2935.9,1.744]
[1766558776622,5.8244,2936.3,2935.9,0.89]
[1766558777125,5.8244,2936.3,2936.0,0.89]
[1766558778334,5.8244,2936.2,2935.6,0.8659]
[1766558778536,5.8244,2936.2,2935.7,0.92406342]
[1766558778731,5.8244,2936.2,2935.7,1.80756342]
[1766558780157,5.8244,2936.2,2935.8,0.89]
[1766558783054,5.8244,2936.2,2935.8,0.892]
[1766558783561,1.02243041,2936.3,2935.9,0.9643611]
[1766558783761,3.40544192,2936.5,2935.9,0.9303]
[1766558784247,7.16e-06,2936.6,2936.2,4.38605876]
[1766558784435,5.8244,2937.0,2936.3,0.92405646]
[1766558784637,5.8244,2936.8,2936.4,0.89]
[1766558785061,3.40507479,2936.8,2936.4,0.89]
[1766558785247,5.8244,2936.7,2936.4,0.89]
[1766558786361,5.8244,2936.7,2935.8,3.58935941]
[1766558786544,5.8244,2936.7,2935.9,5.31837664]
[1766558786748,5.8244,2936.7,2936.0,0.5501533]
[1766558787962,5.8244,2936.6,2936.0,0.5501533]
[1766558788165,5.8244,2936.6,2935.8,0.18315634]
[1766558788166,5.8244,2936.4,2935.8,0.002]
[1766558788473,5.8244,2936.4,2935.9,0.89]
[1766558788973,9.22946673,2936.8,2935.9,5.27605876]
[1766558789278,5.8244,2936.7,2936.0,0.86842844]
[1766558789769,5.8244,2936.7,2936.1,0.03405878]
[1766558790661,3.40486267,2937.0,2936.1,0.03405878]
[1766558790662,9.22928026,2937.0,2936.1,0.03405878]
[1766558791240,0.001,2936.7,2936.1,0.03405878]
[1766558791436,0.001,2936.7,2936.2,0.8694532]
[1766558791634,0.001,2936.7,2936.3,0.92405646]
[1766558792368,6.0349,2936.7,2936.3,0.92405646]
[1766558795260,6.0349,2936.7,2936.3,0.89]
[1766558797476,6.0349,2936.7,2936.0,8.66043874]
[1766558797677,6.0349,2936.7,2936.1,1.85826601]
[1766558802375,6.0349,2936.7,2936.1,5.26412715]
[1766558802686,0.001,2936.7,2936.1,5.26412715]
[1766558802904,0.001,2936.7,2936.2,0.03405762]
[1766558803918,5.8894,2936.7,2936.3,0.89]
[1766558804104,5.8894,2936.7,2936.0,5.2544872]
[1766558804311,5.8894,2936.7,2936.1,1.8582779]
[1766558804598,5.8894,2936.7,2936.0,5.2544872]
[1766558804776,5.8894,2936.7,2936.1,0.89]
[1766558810804,5.8894,2936.7,2936.0,4.27640897]
[1766558810977,5.8894,2936.7,2936.1,0.89]
[1766558811173,5.8894,2936.7,2936.0,0.87042844]
[1766558811379,5.8884,2936.6,2936.1,0.89]
[1766558812214,5.8884,2936.6,2936.0,0.002]
[1766558812388,5.8884,2936.6,2936.2,0.89]
[1766558813302,5.8884,2936.6,2936.3,0.89]
[1766558816807,5.8884,2936.6,2936.0,0.002]
[1766558816988,5.8884,2936.5,2936.1,0.89]
[1766558822717,5.8884,2936.5,2936.0,0.002]
[1766558822916,7.15840504,2936.5,2936.0,0.002]
[1766558823214,5.4702,2936.4,2936.0,0.002]
[1766558823420,5.4702,2936.3,2935.8,0.002]
[1766558823618,5.4702,2936.3,2936.1,1e-08]
[1766558823928,6.35777325,2936.2,2936.1,1e-08]
[1766558824914,6.35777325,2936.2,2935.8,0.002]
[1766558825105,6.35777325,2936.2,2935.9,0.89]
[1766558825628,6.35777325,2936.2,2935.8,0.002]
[1766558825836,6.35777325,2936.2,2935.9,0.89]
[1766558826400,6.35777325,2936.2,2935.8,0.002]
[1766558826736,6.35777325,2936.2,2935.9,0.89]
[1766558830728,6.35777325,2936.2,2935.9,0.892]
[1766558832738,5.4702,2936.0,2935.8,0.89]
[1766558832924,0.63577733,2936.1,2935.8,0.89]
[1766558833106,5.4702,2936.3,2935.8,0.89]
[1766558838634,9.76565567,2936.5,2935.8,0.892]
[1766558838935,0.001,2936.3,2935.8,0.892]
[1766558847725,0.001,2936.3,2935.9,0.0340611]
[1766558849856,0.001,2936.3,2935.9,3.44015]
[1766558850022,5.4712,2936.7,2935.9,4.2139963]
[1766558850230,0.01023317,2936.6,2935.9,3.4060889]
[1766558850428,0.01023317,2936.6,2935.9,3.44015]
[1766558850659,5.48043317,2936.6,2935.9,0.0340611]
[1766558851042,5.48043317,2936.6,2935.9,3.44016485]
[1766558851956,0.01023317,2936.6,2935.9,4.21401264]
[1766558852164,0.01123317,2936.7,2935.9,8.6039301]
[1766558852324,0.01123317,2936.7,2935.9,11.97597956]
[1766558853661,15.58447554,2937.0,2936.0,0.03405994]
[1766558853829,11.85600964,2937.0,2936.0,1.32426389]
[1766558854032,5.7296,2936.9,2936.0,1.29020395]
[1766558854451,5.7296,2936.8,2936.1,0.89]
[1766558854840,0.001,2936.6,2936.1,0.89]
[1766558855041,0.001,2936.6,2936.2,0.89]
[1766558855294,0.001,2936.6,2936.0,1.29020395]
[1766558855579,5.7306,2936.6,2936.1,0.89]
[1766558855745,5.7306,2936.6,2936.2,0.89]
[1766558856073,5.7306,2936.6,2935.9,4.17990776]
[1766558856279,5.7306,2936.6,2936.0,0.89]
[1766558857177,5.7306,2936.6,2935.9,4.17990776]
[1766558857378,5.7306,2936.6,2936.1,0.89]
[1766558859353,5.7306,2936.6,2936.2,0.89]
[1766558860154,5.7306,2936.6,2936.3,0.89]
[1766558860556,5.7306,2936.6,2936.4,0.89]
[1766558860877,6.0195,2936.5,2935.8,0.002]
[1766558861083,6.0195,2936.5,2935.9,1.23082931]
[1766558861394,6.0195,2936.5,2936.0,0.92405994]
[1766558861580,6.0195,2936.5,2936.0,0.89]
[1766558861949,0.001,2936.6,2936.0,0.89]
[1766558862151,6.0195,2936.7,2936.0,0.89]
[1766558862881,0.001,2936.6,2936.0,0.89]
[1766558863550,0.001,2936.6,2936.0,4.29593349]
[1766558863752,0.001,2936.6,2936.1,0.42959335]
[1766558865287,6.01028411,2936.7,2936.1,0.42959335]
[1766558867688,6.01028411,2936.7,2936.1,3.83544882]
[1766558867890,6.0195,2936.9,2936.1,3.83544882]
[1766558868693,6.0195,2936.9,2936.1,0.42959335]
[1766558869896,6.0195,2936.8,2936.1,0.42959335]
[1766558871097,0.001,2936.7,2936.1,0.42959335]
[1766558871297,0.001,2936.7,2936.2,0.47275414]
[1766558877295,0.001,2936.7,2936.0,4.29794804]
[1766558879323,9.42428348,2937.1,2936.1,4.42397624]
[1766558879492,0.001,2936.8,2936.1,4.42397624]
[1766558879684,6.0195,2937.1,2936.1,4.42397624]
[1766558880686,6.0195,2937.1,2936.2,3.40576255]
[1766558880888,6.0195,2937.1,2936.3,1.1576132]
[1766558881124,6.0195,2937.1,2936.4,0.89]
[1766558881324,6.0195,2937.1,2936.5,0.03405414]
[1766558883120,6.0195,2937.1,2936.4,0.89]
[1766558884922,6.0195,2937.1,2936.5,0.03405414]
[1766558886613,5.757,2937.0,2936.4,0.89]
[1766558886921,6.69941349,2937.0,2936.4,0.89]
[1766558887492,5.757,2936.9,2936.4,0.89]
[1766558887693,5.757,2936.9,2936.1,3.40580446]
[1766558887990,5.757,2936.9,2936.2,0.89]
[1766558888521,6.76752952,2936.9,2936.1,3.40580446]
[1766558888819,6.76752952,2936.9,2936.2,0.89]
[1766558889805,6.76752952,2936.9,2936.3,0.03405646]
[1766558890005,5.757,2936.9,2936.3,0.03405646]
[1766558893634,5.757,2936.8,2936.4,0.89]
[1766558895027,5.757,2936.8,2936.1,3.40586306]
[1766558895235,5.757,2936.8,2936.2,0.89]
[1766558895834,5.757,2936.8,2936.3,0.002]
[1766558896334,6.76742955,2936.8,2936.3,0.002]
[1766558897196,6.76742955,2936.8,2936.4,0.89]
[1766558903233,6.76742955,2936.8,2936.5,0.89]
[1766558908625,6.76742955,2936.8,2936.4,0.002]
[1766558908859,6.76742955,2936.8,2936.5,0.89]
[1766558908860,5.757,2936.8,2936.5,0.89]
[1766558911888,5.757,2936.8,2936.3,0.002]
[1766558912093,5.757,2936.8,2936.1,0.89]
[1766558912574,5.757,2936.8,2936.4,0.002]
[1766558912768,5.758,2936.8,2936.4,0.002]
[1766558912976,6.0784,2936.6,2936.4,0.002]
[1766558917651,6.0784,2936.6,2936.1,0.89]
[1766558918056,6.0784,2936.6,2936.1,3.40586652]
[1766558918664,6.0784,2936.6,2936.1,4.29586652]
[1766558919290,6.0784,2936.6,2936.1,3.40586652]
[1766558919459,0.001,2936.8,2936.2,0.03405762]
[1766558919460,5.8788,2936.8,2936.2,0.03405762]
[1766558919859,5.8788,2936.8,2936.1,4.29586652]
[1766558920061,5.8788,2936.8,2936.2,0.03405762]
[1766558920777,0.001,2937.1,2936.3,4.386894]
[1766558920961,0.001,2937.1,2936.4,0.0340553]
[1766558921159,0.001,2937.1,2936.4,1.24629551]
[1766558921360,0.001,2936.8,2936.4,1.24629551]
[1766558923395,0.001,2936.8,2936.4,4.65174323]
[1766558923798,0.001,2936.8,2936.5,0.89]
[1766558923965,0.001,2937.1,2936.6,0.03405298]
[1766558926504,5.8788,2937.1,2936.6,0.03405298]
[1766558930415,5.8788,2937.1,2936.6,0.92405298]
[1766558930876,5.8788,2937.1,2936.6,0.89]
[1766558933106,5.8788,2937.1,2936.5,0.89]
[1766558939431,5.8778,2937.0,2936.5,0.89]
[1766558940343,5.8778,2937.0,2936.4,0.002]
[1766558940500,5.8778,2937.0,2936.5,0.89]
[1766558941845,5.8778,2937.0,2936.4,0.892]
[1766558942338,6.1065,2936.8,2936.0,0.892]
[1766558942525,6.1065,2936.8,2936.1,0.89]
[1766558944943,6.1065,2936.7,2936.1,0.89]
[1766558945645,6.1065,2936.7,2936.4,0.002]
[1766558946766,6.1065,2936.6,2936.0,0.002]
[1766558946970,6.73078722,2936.6,2935.8,0.002]
[1766558947672,6.1065,2936.3,2935.8,0.002]
[1766558958387,6.1065,2936.2,2935.8,0.002]
[1766558958566,6.12013722,2936.2,2935.8,0.002]
[1766558958766,6.1065,2936.0,2935.8,0.002]
[1766558958990,6.1065,2936.0,2935.6,0.002]
[1766558959187,6.1065,2936.0,2935.4,0.002]
[1766558959406,6.12013722,2936.0,2935.4,0.002]
[1766558959717,6.1065,2935.9,2935.4,0.002]
[1766558959888,6.1065,2935.7,2935.4,0.002]
[1766558960294,6.1065,2935.7,2935.2,0.88478411]
[1766558961314,6.1065,2935.7,2935.1,0.893]
[1766558963721,6.1065,2935.7,2935.1,0.002]
[1766558964479,6.1065,2935.7,2934.9,0.002]
[1766558964480,6.1065,2935.6,2934.9,0.002]
[1766558964675,6.1065,2935.4,2934.9,0.002]
[1766558965108,6.1065,2935.4,2934.6,4.29633554]
[1766558965109,6.12013722,2935.4,2934.6,4.29633554]
[1766558965503,6.12013722,2935.4,2934.6,0.891]
[1766558966013,6.1065,2935.7,2934.9,7.79602027]
[1766558966178,6.1065,2935.7,2935.0,0.92507155]
[1766558966374,6.81241232,2935.7,2935.0,0.92507155]
[1766558966987,6.1065,2935.7,2935.0,7.7392901]
[1766558967193,6.1065,2935.7,2935.1,0.03407038]
[1766558969214,6.1065,2935.7,2935.1,3.44100958]
[1766558969382,6.1065,2935.9,2935.1,3.44100958]
[1766558969901,0.001,2935.7,2935.1,3.44100958]
[1766558972284,0.001,2935.7,2935.1,4.6539947]
[1766558984539,5.7085,2935.7,2935.1,4.6539947]
[1766558988361,5.7085,2935.7,2935.1,3.44100958]
[1766558990772,5.7085,2935.7,2935.1,3.4069392]
[1766558994384,5.7085,2935.7,2935.1,3.44100958]
[1766558994797,6.74374189,2936.0,2935.1,6.84804852]
[1766558994958,6.74374189,2936.0,2935.1,6.81397814]
[1766558995283,5.7075,2936.3,2935.4,3.40669074]
[1766558995591,1.0225036,2936.2,2935.5,0.891]
[1766558995793,6.7300036,2936.2,2935.5,0.891]
[1766558997170,5.7075,2936.2,2935.6,0.03406458]
[1766558997365,6.72993738,2936.5,2935.7,0.7738169]
[1766558997566,6.72993738,2936.5,2935.6,0.03406458]
[1766558997797,6.7435746,2936.5,2935.6,0.03406458]
[1766558999207,6.7435746,2936.5,2935.7,3.4063426]
[1766558999509,5.72113722,2936.5,2935.7,3.4063426]
[1766559001670,5.7075,2936.5,2935.8,0.03406226]
[1766559001870,5.7075,2936.5,2935.9,1.57567475]
[1766559002700,5.7075,2936.5,2936.0,0.03405994]
[1766559003369,0.001,2936.7,2936.1,0.03405878]
[1766559003797,0.001,2936.5,2936.1,0.03405878]
[1766559004100,0.001,2936.5,2936.1,1.31511003]
[1766559004784,0.001,2936.7,2936.1,1.31511003]
[1766559005466,0.001,2936.7,2936.1,4.72089041]
[1766559012227,5.9872,2936.7,2936.1,4.72089041]
[1766559013926,0.001,2936.7,2936.1,4.72089041]
[1766559014135,5.9872,2936.7,2936.2,0.91511597]
[1766559014431,5.9872,2936.7,2936.1,4.72089041]
[1766559024343,5.9872,2936.7,2936.1,3.43983916]
[1766559028662,5.9872,2937.1,2936.6,4.38803102]
[1766559028825,0.001,2937.1,2936.6,4.38803102]
[1766559029023,0.001,2937.1,2936.5,0.891]
[1766559031229,6.47696956,2937.1,2936.5,0.891]
[1766559032158,6.47696956,2937.1,2936.4,1.02214824]
[1766559032360,6.49060678,2937.1,2936.2,4.29667489]